bitfinex-derivatives/quotes_BTCF0:USTF0_20250626
["timestamp","ask_amount","ask_price","bid_price","bid_amount"]
[1750950268225,0.3759465,107510.0,107500.0,0.5780638]
[1750950268426,0.76476868,107510.0,107500.0,0.7167838]
[1750950269828,0.4076465,107510.0,107500.0,0.7801838]
[1750950272230,0.4382465,107510.0,107500.0,0.7801838]
[1750950274326,0.4382465,107510.0,107500.0,0.7483838]
[1750950274831,0.1859638,107500.0,107490.0,0.7319795]
[1750950275026,0.96598598,107500.0,107490.0,0.7319795]
[1750950275331,0.96598598,107500.0,107490.0,0.6855011]
[1750950276530,0.6088638,107500.0,107490.0,0.6855011]
[1750950276832,0.96598598,107500.0,107490.0,0.6855011]
[1750950278129,0.96698598,107500.0,107490.0,0.6855011]
[1750950278328,0.79798598,107500.0,107490.0,0.6855011]
[1750950279130,0.79798598,107500.0,107490.0,0.5467811]
[1750950279330,0.79798598,107500.0,107490.0,0.6851411]
[1750950280631,0.192,107500.0,107490.0,1.04226328]
[1750950280923,0.192,107500.0,107490.0,1.10446328]
[1750950281330,0.002,107500.0,107490.0,1.10446328]
[1750950281635,0.002,107500.0,107490.0,1.11446328]
[1750950281832,0.002,107500.0,107490.0,1.45446328]
[1750950282031,0.002,107500.0,107490.0,1.11446328]
[1750950282231,0.001,107500.0,107490.0,1.11446328]
[1750950282633,0.001,107500.0,107490.0,1.48446328]
[1750950282938,0.3256303,107510.0,107500.0,0.1859638]
[1750950283139,0.5754303,107510.0,107500.0,0.99758598]
[1750950284038,0.5754303,107510.0,107500.0,0.6404638]
[1750950285237,0.96485248,107510.0,107500.0,0.6404638]
[1750950285434,0.99695248,107510.0,107500.0,0.6404638]
[1750950285634,0.99695248,107510.0,107500.0,0.6090638]
[1750950285837,0.99695248,107510.0,107500.0,0.5467638]
[1750950286238,1.02338743,107510.0,107500.0,0.5467638]
[1750950286836,0.99695248,107510.0,107500.0,0.5467638]
[1750950287037,0.99695248,107510.0,107500.0,0.6851238]
[1750950289940,1.02339371,107510.0,107500.0,0.6851238]
[1750950290143,0.99695248,107510.0,107500.0,0.6851238]
[1750950294247,0.1859638,107500.0,107490.0,0.4258]
[1750950294552,0.1859811,107490.0,107480.0,0.65500603]
[1750950294738,0.98780328,107490.0,107480.0,0.65500603]
[1750950295045,0.98780328,107490.0,107480.0,0.6397845]
[1750950296944,0.95770328,107490.0,107480.0,0.6397845]
[1750950297145,0.95770328,107490.0,107480.0,0.6729845]
[1750950298943,0.95770328,107490.0,107480.0,0.6264857]
[1750950299546,0.95770328,107490.0,107480.0,0.394]
[1750950299744,0.95770328,107490.0,107470.0,0.01627929]
[1750950299745,0.1859984,107480.0,107470.0,0.01627929]
[1750950299941,0.96022058,107480.0,107470.0,0.01627929]
[1750950300144,1.31734276,107480.0,107470.0,0.00093045]
[1750950300344,1.67814276,107480.0,107470.0,0.00093045]
[1750950300847,1.34739752,107480.0,107470.0,0.00093045]
[1750950301242,1.32102058,107480.0,107470.0,0.00293045]
[1750950301853,1.34738377,107480.0,107470.0,0.00293045]
[1750950302250,1.32102058,107480.0,107470.0,0.00293045]
[1750950302951,1.33031829,107480.0,107470.0,0.00293045]
[1750950304252,1.33031829,107480.0,107470.0,0.00493045]
[1750950305153,1.33031829,107480.0,107470.0,0.19094615]
[1750950306349,1.33031829,107480.0,107470.0,0.00493045]
[1750950308657,0.9306984,107480.0,107470.0,0.19094615]
[1750950308856,1.28782058,107480.0,107470.0,0.19094615]
[1750950310853,1.28782058,107480.0,107470.0,0.22224615]
[1750950312052,0.89392058,107480.0,107470.0,0.58304615]
[1750950312358,0.2659984,107480.0,107470.0,0.97346833]
[1750950312557,0.5359984,107480.0,107470.0,0.64734615]
[1750950313257,0.2559984,107480.0,107470.0,0.64734615]
[1750950314354,0.86312058,107480.0,107470.0,0.10053045]
[1750950314551,0.86312058,107480.0,107470.0,0.03623045]
[1750950314747,1.28712058,107480.0,107470.0,0.00493045]
[1750950320357,1.64424276,107480.0,107470.0,0.00493045]
[1750950321160,1.67046451,107480.0,107470.0,0.00493045]
[1750950321357,1.31334233,107480.0,107470.0,0.00493045]
[1750950324158,0.95254233,107480.0,107470.0,0.03613045]
[1750950324954,1.31334233,107480.0,107470.0,0.03613045]
[1750950327966,1.31334233,107480.0,107470.0,0.00493045]
[1750950328167,1.67046451,107480.0,107470.0,0.00493045]
[1750950329363,1.67046451,107480.0,107470.0,5e-08]
[1750950329564,1.80862451,107480.0,107470.0,5e-08]
[1750950330364,1.80862451,107480.0,107440.0,0.39363071]
[1750950330365,0.1860503,107450.0,107440.0,0.39363071]
[1750950330569,0.90317248,107450.0,107440.0,0.42523071]
[1750950330769,0.93607248,107450.0,107440.0,0.45653071]
[1750950331368,0.93607248,107450.0,107440.0,0.42463071]
[1750950331669,0.96917248,107450.0,107440.0,0.42463071]
[1750950332264,1.04479788,107450.0,107440.0,0.36173071]
[1750950332470,1.04479788,107450.0,107430.0,9.0]
[1750950332471,0.1860676,107440.0,107430.0,9.0]
[1750950332669,0.92348978,107440.0,107430.0,9.1860849]
[1750950332871,0.89318978,107440.0,107430.0,9.5791849]
[1750950333068,0.89318978,107440.0,107430.0,9.6113849]
[1750950333472,0.5360676,107440.0,107430.0,9.96850708]
[1750950333873,0.35533722,107450.0,107440.0,0.1860676]
[1750950334073,0.33862172,107450.0,107440.0,1.00098978]
[1750950334265,0.30862172,107450.0,107440.0,1.00098978]
[1750950335073,0.30862172,107450.0,107440.0,1.00198978]
[1750950335277,0.63862172,107450.0,107440.0,0.6448676]
[1750950335475,0.30862172,107450.0,107440.0,0.6448676]
[1750950335772,0.30862172,107450.0,107440.0,0.6458676]
[1750950336677,0.35862172,107450.0,107440.0,0.6458676]
[1750950339484,0.38485755,107450.0,107440.0,0.6458676]
[1750950339677,0.35862172,107450.0,107440.0,0.6458676]
[1750950340678,0.05,107450.0,107440.0,1.00298978]
[1750950340879,0.1860503,107450.0,107440.0,1.00298978]
[1750950341080,0.1860503,107450.0,107440.0,1.14086978]
[1750950341787,0.1860503,107450.0,107440.0,0.7837476]
[1750950343178,0.16910613,107460.0,107440.0,1.30480218]
[1750950343484,0.47166353,107460.0,107450.0,0.96777248]
[1750950343678,0.47146353,107460.0,107450.0,0.6106503]
[1750950344981,0.07,107460.0,107450.0,0.96777248]
[1750950345187,0.2327354,107470.0,107460.0,0.186033]
[1750950345382,0.58218566,107470.0,107460.0,0.99905518]
[1750950345588,0.0012,107480.0,107470.0,0.1860157]
[1750950345791,0.4369984,107480.0,107470.0,0.96783788]
[1750950345990,0.46316615,107480.0,107470.0,0.96783788]
[1750950346889,0.46316615,107480.0,107470.0,0.6107157]
[1750950348082,0.4369984,107480.0,107470.0,0.6107157]
[1750950348287,0.4399984,107480.0,107470.0,0.6107157]
[1750950349196,0.004,107480.0,107470.0,0.96783788]
[1750950349393,0.1899984,107480.0,107470.0,0.96783788]
[1750950350193,0.1939984,107480.0,107470.0,0.96783788]
[1750950350796,0.1899984,107480.0,107470.0,0.96783788]
[1750950351388,0.1869984,107480.0,107470.0,0.6107157]
[1750950351589,0.1869984,107480.0,107470.0,0.96783788]
[1750950358098,0.001,107480.0,107470.0,0.96783788]
[1750950358304,0.001,107480.0,107470.0,1.33783788]
[1750950359703,0.001,107480.0,107470.0,0.96783788]
[1750950359900,0.001,107480.0,107470.0,1.33783788]
[1750950360302,0.001,107480.0,107470.0,1.33883788]
[1750950361206,0.001,107480.0,107470.0,1.33983788]
[1750950361805,0.001,107480.0,107470.0,1.30983788]
[1750950365213,0.5469984,107480.0,107470.0,0.002]
[1750950365416,1.35504276,107480.0,107470.0,0.002]
[1750950365707,1.96584276,107480.0,107470.0,0.002]
[1750950366306,1.71584276,107480.0,107470.0,0.002]
[1750950366512,1.96584276,107480.0,107470.0,0.002]
[1750950366711,0.186033,107460.0,107450.0,0.01512977]
[1750950366910,0.90315518,107460.0,107450.0,0.01512977]
[1750950367110,0.96665518,107460.0,107450.0,0.01512977]
[1750950367308,1.32745518,107460.0,107450.0,0.01512977]
[1750950368402,1.33669323,107460.0,107450.0,0.01512977]
[1750950368708,0.1860676,107440.0,107430.0,0.13784]
[1750950369016,0.1860849,107430.0,107420.0,1.3364]
[1750950369207,0.93580708,107430.0,107420.0,1.3364]
[1750950369407,1.29660708,107430.0,107420.0,0.13784]
[1750950369705,0.57580708,107430.0,107420.0,0.6847422]
[1750950370008,0.1860849,107430.0,107420.0,0.6847422]
[1750950370213,0.1860849,107430.0,107420.0,1.10606438]
[1750950370418,0.65571058,107440.0,107430.0,0.1860849]
[1750950370712,0.1860676,107440.0,107430.0,0.7776408]
[1750950370910,0.91318978,107440.0,107430.0,0.7156049]
[1750950371102,0.94898978,107440.0,107430.0,0.3238049]
[1750950371811,0.68898978,107440.0,107430.0,0.3238049]
[1750950372615,0.68898978,107440.0,107430.0,0.7153049]
[1750950372913,0.1860676,107440.0,107430.0,0.7153049]
[1750950373112,0.3560095,107450.0,107440.0,0.1860676]
[1750950373318,0.4558095,107450.0,107440.0,0.2167676]
[1750950373916,0.4092932,107450.0,107440.0,0.2167676]
[1750950374321,0.4102932,107450.0,107440.0,0.2167676]
[1750950374617,0.4112932,107450.0,107440.0,0.2167676]
[1750950375916,0.002,107450.0,107440.0,0.94971861]
[1750950376111,0.002,107450.0,107440.0,0.98291861]
[1750950378221,0.002,107450.0,107440.0,1.29291861]
[1750950378413,0.002,107450.0,107440.0,1.35424698]
[1750950378612,0.002,107450.0,107440.0,1.04424698]
[1750950378918,0.002,107450.0,107440.0,1.42424698]
[1750950379119,0.002,107450.0,107440.0,1.17424698]
[1750950379518,0.001,107450.0,107440.0,1.17424698]
[1750950379718,0.001,107450.0,107440.0,1.17524698]
[1750950379925,0.1970503,107450.0,107440.0,0.89451643]
[1750950380221,0.60550085,107450.0,107440.0,0.62679643]
[1750950380411,1.02760085,107450.0,107440.0,0.01602883]
[1750950380613,1.38840085,107450.0,107440.0,0.001]
[1750950380923,1.38740085,107450.0,107440.0,0.001]
[1750950381121,1.38740085,107450.0,107440.0,0.002]
[1750950381725,1.38840085,107450.0,107440.0,0.001]
[1750950382221,0.1860676,107440.0,107430.0,0.6399251]
[1750950382412,0.3718676,107440.0,107430.0,0.6399251]
[1750950382610,0.3718676,107440.0,107430.0,0.6727251]
[1750950382828,0.3718676,107440.0,107430.0,0.8104451]
[1750950383418,0.5918676,107440.0,107430.0,0.8114451]
[1750950383712,0.3418676,107440.0,107430.0,0.8114451]
[1750950384116,0.3418676,107440.0,107430.0,0.8124451]
[1750950384322,0.6018676,107440.0,107430.0,0.8124451]
[1750950384523,0.3418676,107440.0,107430.0,0.8124451]
[1750950385420,1.01031815,107440.0,107430.0,0.7659245]
[1750950386119,0.67031815,107440.0,107430.0,0.7659245]
[1750950386319,0.76031815,107440.0,107430.0,0.7659245]
[1750950386523,0.3418676,107440.0,107430.0,0.7659245]
[1750950387624,0.76031815,107440.0,107430.0,0.7659245]
[1750950388225,0.76031815,107440.0,107430.0,0.6282045]
[1750950388625,0.72751815,107440.0,107430.0,0.6282045]
[1750950388826,0.1860676,107440.0,107430.0,0.6927045]
[1750950390624,0.3899122,107450.0,107440.0,0.1860676]
[1750950390816,0.4856122,107450.0,107440.0,0.5781676]
[1750950391017,0.4856122,107450.0,107440.0,0.6089676]
[1750950391726,0.5163122,107450.0,107440.0,0.6089676]
[1750950392028,0.3563122,107450.0,107440.0,0.6089676]
[1750950392225,0.6883122,107450.0,107440.0,0.5781676]
[1750950392426,1.13716275,107450.0,107440.0,0.2173676]
[1750950392923,1.13716275,107450.0,107440.0,0.1860676]
[1750950393228,1.13716275,107450.0,107440.0,0.3238276]
[1750950393530,0.1860676,107440.0,107430.0,0.76355]
[1750950393731,1.04651815,107440.0,107430.0,0.76355]
[1750950394923,1.04651815,107440.0,107430.0,0.76455]
[1750950395228,1.04651815,107440.0,107430.0,0.76555]
[1750950395423,1.04651815,107440.0,107430.0,0.62779]
[1750950395628,1.04651815,107440.0,107430.0,0.76555]
[1750950396328,1.04651815,107440.0,107430.0,0.79765]
[1750950397533,1.04651815,107440.0,107430.0,0.5488849]
[1750950397729,0.69911815,107440.0,107430.0,0.1880849]
[1750950397926,0.88911815,107440.0,107430.0,0.1880849]
[1750950398233,0.82802012,107440.0,107430.0,0.1880849]
[1750950399042,0.82802012,107440.0,107430.0,0.002]
[1750950400224,0.82802012,107440.0,107430.0,0.1880849]
[1750950402632,0.73342012,107440.0,107430.0,0.1880849]
[1750950402928,0.3760676,107440.0,107430.0,0.2180849]
[1750950403130,0.3760676,107440.0,107430.0,0.2493849]
[1750950403331,0.3760676,107440.0,107430.0,0.6101849]
[1750950403533,0.3760676,107440.0,107430.0,0.96753742]
[1750950404831,0.3760676,107440.0,107430.0,0.6101849]
[1750950411838,0.1860676,107440.0,107430.0,0.6101849]
[1750950412548,0.54342012,107440.0,107430.0,0.6101849]
[1750950412748,0.1860676,107440.0,107430.0,0.6101849]
[1750950414952,0.1860676,107440.0,107430.0,0.96753742]
[1750950415449,0.1860676,107440.0,107430.0,0.6101849]
[1750950418048,0.3418974,107450.0,107440.0,0.1860689]
[1750950418254,0.68476157,107450.0,107440.0,0.7765489]
[1750950418455,0.6590974,107450.0,107440.0,0.7765489]
[1750950418655,0.3160679,107450.0,107440.0,0.99622142]
[1750950418854,0.1860679,107450.0,107440.0,1.13390142]
[1750950419055,0.1860679,107450.0,107440.0,1.45390142]
[1750950419256,0.68313312,107460.0,107450.0,0.1860516]
[1750950419453,0.4755806,107460.0,107450.0,0.6076516]
[1750950420454,0.432069,107460.0,107450.0,0.6076516]
[1750950420855,0.282069,107460.0,107450.0,0.96500412]
[1750950421155,0.282069,107460.0,107450.0,0.6076516]
[1750950421556,0.284069,107460.0,107450.0,0.6076516]
[1750950422858,0.2375588,107460.0,107450.0,0.6076516]
[1750950425461,0.1910492,107460.0,107450.0,0.6076516]
[1750950425662,0.1910492,107460.0,107450.0,0.96500412]
[1750950426058,0.005,107460.0,107450.0,0.96500412]
[1750950426255,0.005,107460.0,107450.0,1.33500412]
[1750950426662,0.1910343,107460.0,107450.0,1.33500412]
[1750950426962,0.005,107460.0,107450.0,1.33500412]
[1750950427859,0.005,107460.0,107450.0,1.29500412]
[1750950428562,0.005,107460.0,107450.0,1.31041057]
[1750950429459,0.005,107460.0,107450.0,1.04041057]
[1750950429663,0.005,107460.0,107450.0,1.33041057]
[1750950430462,0.005,107460.0,107450.0,0.96961057]
[1750950430663,0.005,107460.0,107450.0,1.69121057]
[1750950430853,0.005,107460.0,107450.0,1.53869057]
[1750950431054,0.005,107460.0,107450.0,1.12133805]
[1750950431362,0.1910343,107460.0,107450.0,1.02385805]
[1750950431566,0.54838682,107460.0,107450.0,1.16133805]
[1750950431766,0.61198682,107460.0,107450.0,1.13063805]
[1750950432162,0.2221343,107460.0,107450.0,1.48799057]
[1750950432363,0.1910343,107460.0,107450.0,1.51909057]
[1750950435376,0.2227343,107460.0,107450.0,1.09063805]
[1750950435566,0.2227341,107460.0,107450.0,1.31051057]
[1750950435771,0.1910341,107460.0,107450.0,1.48029057]
[1750950436371,0.1910341,107460.0,107450.0,1.83029057]
[1750950436668,0.1910341,107460.0,107450.0,1.48029057]
[1750950436872,0.005,107460.0,107450.0,1.48029057]
[1750950437169,0.005,107460.0,107450.0,1.86029057]
[1750950437373,0.191034,107460.0,107450.0,1.48029057]
[1750950438472,0.191034,107460.0,107450.0,1.79029057]
[1750950439473,0.191034,107460.0,107450.0,1.12293805]
[1750950439672,0.191034,107460.0,107450.0,1.48029057]
[1750950440473,0.191034,107460.0,107450.0,1.86029057]
[1750950442373,0.005,107460.0,107450.0,1.86029057]
[1750950442569,0.005,107460.0,107450.0,1.50293805]
[1750950442775,0.005,107460.0,107450.0,1.86029057]
[1750950446579,0.005,107460.0,107450.0,1.95244292]
[1750950449484,0.0002,107470.0,107460.0,0.186034]
[1750950449686,0.0012,107480.0,107470.0,0.20105209]
[1750950449883,0.001,107480.0,107470.0,1.47868461]
[1750950452885,0.005,107480.0,107470.0,1.47868461]
[1750950453983,0.009,107480.0,107470.0,1.47868461]
[1750950454583,0.009,107480.0,107470.0,1.57093735]
[1750950458794,0.009,107480.0,107470.0,1.47868461]
[1750950465193,1e-07,107480.0,107470.0,1.83603713]
[1750950465395,1e-07,107490.0,107480.0,0.1859994]
[1750950465598,1e-07,107490.0,107480.0,1.64330444]
[1750950465898,1e-07,107490.0,107480.0,1.67360444]
[1750950466093,1e-07,107490.0,107480.0,1.68289635]
[1750950466295,1e-07,107490.0,107480.0,1.46282383]
[1750950466693,1e-07,107490.0,107480.0,1.29444383]
[1750950466898,1e-07,107490.0,107480.0,1.02444383]
[1750950467198,0.0651001,107490.0,107480.0,1.16172383]
[1750950467998,0.0611001,107490.0,107480.0,1.16272383]
[1750950468799,0.0611001,107490.0,107480.0,1.11272383]
[1750950469796,0.0611001,107490.0,107480.0,0.75537131]
[1750950469999,0.0611001,107490.0,107480.0,1.11272383]
[1750950472497,0.2470822,107490.0,107480.0,0.55709131]
[1750950472693,0.98443472,107490.0,107480.0,0.3618]
[1750950472900,1.23443472,107490.0,107480.0,0.001]
[1750950473095,0.1859994,107480.0,107470.0,0.69911889]
[1750950473300,0.91805192,107480.0,107470.0,0.69911889]
[1750950473901,0.91805192,107480.0,107470.0,0.70863402]
[1750950474206,0.91805192,107480.0,107470.0,0.70867223]
[1750950474803,0.91805192,107480.0,107470.0,0.69911889]
[1750950474999,0.91805192,107480.0,107470.0,0.51411539]
[1750950475198,0.91805192,107480.0,107470.0,0.15331539]
[1750950476007,0.91805192,107480.0,107470.0,0.15531539]
[1750950476506,0.95025192,107480.0,107470.0,0.15331539]
[1750950476806,0.95025192,107480.0,107470.0,0.33933209]
[1750950477011,0.95025192,107480.0,107470.0,0.33833209]
[1750950477306,0.95125192,107480.0,107470.0,0.33833209]
[1750950478010,1.20125192,107480.0,107470.0,0.33833209]
[1750950478212,0.95125192,107480.0,107470.0,0.33833209]
[1750950479610,0.95125192,107480.0,107470.0,0.15231539]
[1750950481904,0.95125192,107480.0,107470.0,0.33833209]
[1750950482609,0.95125192,107480.0,107470.0,0.15231539]
[1750950482903,0.95125192,107480.0,107470.0,0.33833209]
[1750950486503,0.95125192,107480.0,107470.0,0.15231539]
[1750950489807,0.95125192,107480.0,107470.0,0.01503539]
[1750950490506,0.95125192,107480.0,107470.0,0.20105219]
[1750950490710,1.31205192,107480.0,107470.0,0.01503539]
[1750950491412,1.31205192,107480.0,107470.0,0.20105219]
[1750950492513,1.31205192,107480.0,107470.0,0.01503539]
[1750950493117,1.31205192,107480.0,107470.0,0.20105219]
[1750950494113,1.27935192,107480.0,107470.0,0.23385219]
[1750950495416,1.27935192,107480.0,107470.0,0.26655219]
[1750950496010,0.91855192,107480.0,107470.0,0.26655219]
[1750950496210,0.1860168,107470.0,107460.0,0.8236613]
[1750950496406,0.54336932,107470.0,107460.0,0.9198613]
[1750950496612,0.63336932,107470.0,107460.0,0.9198613]
[1750950496812,0.2760168,107470.0,107460.0,0.9198613]
[1750950497502,0.2760168,107470.0,107460.0,0.9206613]
[1750950498208,0.2760168,107470.0,107460.0,0.9226613]
[1750950498816,0.2760168,107470.0,107460.0,1.28001382]
[1750950499016,0.1860168,107470.0,107460.0,1.30001382]
[1750950500617,0.1860168,107470.0,107460.0,0.8961533]
[1750950500819,0.1860168,107470.0,107460.0,0.7831541]
[1750950501212,0.54336932,107470.0,107460.0,0.59712]
[1750950501413,0.90336932,107470.0,107460.0,0.59712]
[1750950503119,0.90336932,107470.0,107460.0,0.783154]
[1750950503419,0.54336932,107470.0,107460.0,0.783154]
[1750950504217,0.55336932,107470.0,107460.0,0.783154]
[1750950505215,0.55336932,107470.0,107460.0,0.59712]
[1750950505519,0.89636932,107470.0,107460.0,0.23632]
[1750950505717,0.89636932,107470.0,107460.0,0.20562]
[1750950506615,0.95256938,107470.0,107460.0,0.20562]
[1750950507021,0.92666932,107470.0,107460.0,0.0358]
[1750950507223,1.31336895,107470.0,107460.0,0.003]
[1750950507615,1.31336895,107470.0,107460.0,0.002]
[1750950508620,1.31336895,107470.0,107460.0,0.1880341]
[1750950509221,1.31336895,107470.0,107460.0,0.1860341]
[1750950511423,1.31336895,107470.0,107460.0,0.2172341]
[1750950511623,1.31336895,107470.0,107460.0,0.0312]
[1750950512124,1.28746932,107470.0,107460.0,0.0312]
[1750950512422,1.28746932,107470.0,107460.0,0.2172341]
[1750950512720,1.31333492,107470.0,107460.0,0.2172341]
[1750950513719,1.31333492,107470.0,107460.0,0.0312]
[1750950514224,1.28746932,107470.0,107460.0,0.0312]
[1750950514423,1.28746932,107470.0,107460.0,0.217234]
[1750950515424,1.28746932,107470.0,107460.0,0.0312]
[1750950517827,1.31331554,107470.0,107460.0,0.0312]
[1750950520130,1.28301554,107470.0,107460.0,0.2172341]
[1750950520732,1.28301554,107470.0,107460.0,0.2497341]
[1750950521532,0.92566302,107470.0,107460.0,0.2497341]
[1750950521733,1.28301554,107470.0,107460.0,0.2497341]
[1750950522226,0.88921554,107470.0,107460.0,0.6105341]
[1750950522430,0.3260168,107470.0,107460.0,0.96788662]
[1750950523131,0.3257238,107480.0,107470.0,0.1860168]
[1750950523333,0.3325172,107480.0,107470.0,1.13808932]
[1750950524523,0.3325172,107480.0,107470.0,0.7807368]
[1750950524724,0.3256872,107490.0,107480.0,0.1859995]
[1750950524932,0.3813922,107490.0,107480.0,0.6077995]
[1750950525730,0.3554872,107490.0,107480.0,0.6077995]
[1750950525938,0.2634898,107490.0,107480.0,0.6077995]
[1750950526129,0.2634898,107490.0,107480.0,0.96515202]
[1750950526130,0.2169937,107490.0,107480.0,0.96515202]
[1750950526634,0.2169937,107490.0,107480.0,1.34515202]
[1750950526835,0.2169937,107490.0,107480.0,0.9877995]
[1750950527131,0.2169937,107490.0,107480.0,0.6077995]
[1750950527333,0.2189937,107490.0,107480.0,0.6077995]
[1750950527534,0.033,107490.0,107480.0,0.6077995]
[1750950527733,0.2189822,107490.0,107480.0,0.6077995]
[1750950528043,0.033,107490.0,107480.0,0.6077995]
[1750950528335,0.033,107490.0,107480.0,0.96515202]
[1750950528537,0.003,107490.0,107480.0,0.96515202]
[1750950529336,0.1889822,107490.0,107480.0,0.96515202]
[1750950529538,0.003,107490.0,107480.0,0.96515202]
[1750950529739,0.1889822,107490.0,107480.0,0.96515202]
[1750950531739,0.1889822,107490.0,107480.0,0.6077995]
[1750950534130,0.92633472,107490.0,107480.0,0.4218]
[1750950534436,0.95733472,107490.0,107480.0,0.2469995]
[1750950534636,0.95733472,107490.0,107480.0,0.061]
[1750950535843,0.95733472,107490.0,107480.0,0.2469995]
[1750950536244,0.95733472,107490.0,107480.0,0.061]
[1750950536644,0.95733472,107490.0,107480.0,0.2469995]
[1750950537945,0.95733472,107490.0,107480.0,0.0302]
[1750950538346,0.98873472,107490.0,107480.0,0.0302]
[1750950539748,0.98873472,107490.0,107480.0,0.2161995]
[1750950541439,0.98873472,107490.0,107480.0,0.0302]
[1750950542350,0.98873472,107490.0,107480.0,0.2161994]
[1750950543749,0.98873472,107490.0,107480.0,0.0302]
[1750950544748,0.98873472,107490.0,107480.0,0.2161995]
[1750950546236,0.71873472,107490.0,107480.0,0.0302]
[1750950546442,0.98873472,107490.0,107480.0,0.0302]
[1750950552053,0.2199822,107490.0,107480.0,0.5769995]
[1750950552259,0.113,107490.0,107480.0,1.26435202]
[1750950552550,0.1889821,107490.0,107480.0,1.29435202]
[1750950552746,0.1889821,107490.0,107480.0,0.96435202]
[1750950555246,0.003,107490.0,107480.0,0.96435202]
[1750950555451,0.1889822,107490.0,107480.0,0.96435202]
[1750950559461,0.1889822,107490.0,107480.0,0.6069995]
[1750950559662,0.86633472,107490.0,107480.0,0.7436395]
[1750950559963,0.95723472,107490.0,107480.0,0.7436395]
[1750950560263,0.57723472,107490.0,107480.0,0.7436395]
[1750950561061,0.2198822,107490.0,107480.0,0.7436395]
[1750950561256,0.1889822,107490.0,107480.0,0.7436395]
[1750950562062,0.1889822,107490.0,107480.0,0.6069995]
[1750950562363,0.1889822,107490.0,107480.0,1.10099202]
[1750950563464,0.1889822,107490.0,107480.0,0.7436395]
[1750950563965,0.5289822,107490.0,107480.0,0.7436395]
[1750950564466,0.5189822,107490.0,107480.0,0.7436395]
[1750950567963,0.1889822,107490.0,107480.0,0.7436395]
[1750950568262,0.2689822,107490.0,107480.0,0.7436395]
[1750950568669,0.2789822,107490.0,107480.0,0.7436395]
[1750950568865,0.5489822,107490.0,107480.0,0.7436395]
[1750950569569,0.2789822,107490.0,107480.0,0.7436395]
[1750950569770,0.88633472,107490.0,107480.0,0.13664]
[1750950569971,0.98223472,107490.0,107480.0,0.13664]
[1750950571171,0.1859995,107480.0,107470.0,0.79845421]
[1750950571366,0.5569995,107480.0,107470.0,0.93509421]
[1750950572366,0.5569995,107480.0,107470.0,0.79845421]
[1750950572575,0.89435202,107480.0,107470.0,0.51278361]
[1750950572762,0.92435202,107480.0,107470.0,0.15198361]
[1750950573672,0.1860167,107470.0,107460.0,0.83764]
[1750950573880,0.99676922,107470.0,107460.0,0.97428]
[1750950574371,0.99676922,107470.0,107460.0,0.13664]
[1750950575271,0.1860341,107460.0,107450.0,0.89953216]
[1750950575473,0.94538662,107460.0,107450.0,0.85301986]
[1750950576771,0.94538662,107460.0,107450.0,0.85901986]
[1750950576970,0.60538662,107460.0,107450.0,0.67586806]
[1750950577170,0.60538662,107460.0,107450.0,0.81250806]
[1750950577471,0.2480341,107460.0,107450.0,0.81250806]
[1750950577675,0.6080341,107460.0,107450.0,0.81250806]
[1750950577972,0.2480341,107460.0,107450.0,0.81250806]
[1750950578175,0.3180341,107460.0,107450.0,0.81250806]
[1750950578472,0.6280341,107460.0,107450.0,0.57995936]
[1750950578774,0.98538662,107460.0,107450.0,0.76601076]
[1750950579078,0.60538662,107460.0,107450.0,0.76601076]
[1750950579269,0.96538662,107460.0,107450.0,0.76601076]
[1750950579470,0.96538662,107460.0,107450.0,0.57995936]
[1750950579881,0.96538662,107460.0,107450.0,0.76601076]
[1750950581171,0.94538662,107460.0,107450.0,0.44331936]
[1750950581378,0.94538662,107460.0,107450.0,0.006]
[1750950581581,1.30618662,107460.0,107450.0,0.006]
[1750950582872,1.30618662,107460.0,107450.0,0.005]
[1750950583176,1.30618662,107460.0,107450.0,0.003]
[1750950583880,1.38032305,107460.0,107450.0,0.003]
[1750950594882,1.40612014,107460.0,107450.0,0.003]
[1750950596784,0.98332014,107460.0,107450.0,0.1890514]
[1750950597088,0.95752305,107460.0,107450.0,0.2818514]
[1750950597487,0.3260341,107460.0,107450.0,0.6426514]
[1750950597989,0.1860341,107460.0,107450.0,0.6426514]
[1750950598381,0.1860341,107460.0,107450.0,0.7790914]
[1750950598588,0.1860341,107460.0,107450.0,0.7882595]
[1750950598991,0.1860341,107460.0,107450.0,0.7790914]
[1750950600290,0.1860341,107460.0,107450.0,0.7886391]
[1750950600490,0.1860341,107460.0,107450.0,0.7790914]
[1750950600891,0.64338662,107460.0,107450.0,0.7790914]
[1750950601286,0.86338662,107460.0,107450.0,0.7790914]
[1750950602588,0.1860341,107460.0,107450.0,1.13644392]
[1750950602791,0.1860341,107460.0,107450.0,0.7790914]
[1750950602988,0.1860341,107460.0,107450.0,1.13644392]
[1750950603486,0.1860341,107460.0,107450.0,1.46600001]
[1750950603689,0.2792451,107470.0,107460.0,0.1860341]
[1750950603889,0.2790451,107470.0,107460.0,0.96748662]
[1750950604285,0.2325379,107470.0,107460.0,0.96748662]
[1750950604590,0.2792185,107480.0,107470.0,0.1860168]
[1750950604896,1.01228131,107480.0,107470.0,0.0936]
[1750950605093,1.01228131,107480.0,107470.0,0.23004]
[1750950605885,1.01328131,107480.0,107470.0,0.0936]
[1750950606088,1.01328131,107480.0,107470.0,0.23004]
[1750950606289,1.04368131,107480.0,107470.0,0.23004]
[1750950606795,1.04568131,107480.0,107470.0,0.23004]
[1750950606995,1.01877102,107480.0,107470.0,0.23004]
[1750950607593,1.01677102,107480.0,107470.0,0.23004]
[1750950607994,1.01677102,107480.0,107470.0,0.4160568]
[1750950608191,0.98637102,107480.0,107470.0,0.4160568]
[1750950609796,0.98637102,107480.0,107470.0,0.23004]
[1750950609998,0.98637102,107480.0,107470.0,0.4160567]
[1750950610296,0.98637102,107480.0,107470.0,0.23004]
[1750950610690,0.98637102,107480.0,107470.0,0.4160568]
[1750950611505,0.98637102,107480.0,107470.0,0.23004]
[1750950612106,0.98637102,107480.0,107470.0,0.4160568]
[1750950612806,0.98637102,107480.0,107470.0,0.2796168]
[1750950613101,0.9898185,107480.0,107470.0,0.0936]
[1750950613302,0.1860341,107460.0,107450.0,0.2325508]
[1750950613607,0.86338662,107460.0,107450.0,0.2003]
[1750950613905,0.93650151,107460.0,107450.0,0.0641]
[1750950614211,1.29730151,107460.0,107450.0,0.0316]
[1750950614506,1.33810809,107460.0,107450.0,0.0316]
[1750950614707,1.33810809,107460.0,107450.0,0.0638]
[1750950615415,1.37100809,107460.0,107450.0,0.0648]
[1750950615603,1.40210809,107460.0,107450.0,0.0648]
[1750950617211,1.40210809,107460.0,107450.0,0.003]
[1750950620211,1.42813204,107460.0,107450.0,1e-07]
[1750950621809,1.38762546,107460.0,107450.0,1e-07]
[1750950621999,1.32332546,107460.0,107450.0,0.1860514]